[Event "FIDE Women World Blitz 2021"]
[Site "Warsaw"]
[Date "2021.12.30"]
[Round "10.37"]
[White "Sandu, Mihaela"]
[Black "Kubicka, Anna"]
[Result "1-0"]
[ECO "B12"]
[WhiteElo "2244"]
[BlackElo "2273"]
[Annotator "NA"]
[PlyCount "75"]
[EventDate "2021.12.29"]
[EventType "swiss"]
[EventCountry "POL"]
[Tiebreak "Cut1 Buchholz"]
[SourceTitle "playchess.com"]
[Source "ChessBase"]
[SourceQuality "1"]
[TimeControl "180+2"]

1. e4 {[%emt 0:00:01]} c6 {[%emt 0:00:01]} 2. d4 {[%emt 0:00:01]} d5 {[%emt 0:
00:00]} 3. e5 {[%emt 0:00:00]} c5 {[%emt 0:00:02]} 4. Nf3 {[%emt 0:00:02]} Nc6
{[%emt 0:00:06]} 5. c4 {[%emt 0:00:01]} Nxd4 {[%emt 0:00:08]} 6. Nxd4 {[%emt 0:
00:02]} cxd4 {[%emt 0:00:01]} 7. Qxd4 {[%emt 0:00:14]} Be6 {[%emt 0:00:17]} 8.
c5 {[%emt 0:00:27]} a6 {[%emt 0:00:13]} 9. Nc3 {[%emt 0:00:09]} g6 {[%emt 0:00:
01]} 10. Bf4 {[%emt 0:00:10]} Bg7 {[%emt 0:00:02]} 11. Rd1 {[%emt 0:00:08]} Qd7
{[%emt 0:01:14]} 12. Na4 {[%emt 0:00:36]} Rd8 {[%emt 0:00:10]} 13. Nb6 {
[%emt 0:00:17]} Qc6 {[%emt 0:00:03]} 14. Bc4 {[%emt 0:00:15]} Nh6 {[%emt 0:00:
52]} 15. Bxd5 {[%emt 0:00:05]} Bxd5 {[%emt 0:00:01]} 16. Nxd5 {[%emt 0:00:02]}
Rc8 {[%emt 0:00:02]} 17. b4 {[%emt 0:00:16]} Nf5 {[%emt 0:00:04]} 18. Qe4 {
[%emt 0:00:08]} e6 {[%emt 0:00:05]} 19. Nc3 {[%emt 0:00:10]} O-O {[%emt 0:00:
05]} 20. Qxc6 {[%emt 0:00:07]} Rxc6 {[%emt 0:00:01]} 21. Na4 {[%emt 0:00:21]}
Ne7 {[%emt 0:00:05]} 22. Rd7 {[%emt 0:00:03]} Nd5 {[%emt 0:00:01]} 23. Bd2 {
[%emt 0:00:01]} Bxe5 {[%emt 0:00:02]} 24. Rxb7 {[%emt 0:00:01]} Rd8 {[%emt 0:
00:08]} 25. a3 {[%emt 0:00:03]} Nf4 {[%emt 0:00:02]} 26. Bxf4 {[%emt 0:00:02]}
Bxf4 {[%emt 0:00:01]} 27. O-O {[%emt 0:00:03]} e5 {[%emt 0:00:01]} 28. Rb6 {
[%emt 0:00:03]} Rxb6 {[%emt 0:00:03]} 29. Nxb6 {[%emt 0:00:05]} Rd3 {[%emt 0:
00:01]} 30. a4 {[%emt 0:00:04]} Rc3 {[%emt 0:00:02]} 31. g3 {[%emt 0:00:02]}
Bg5 {[%emt 0:00:01]} 32. Rd1 {[%emt 0:00:01]} e4 {[%emt 0:00:02]} 33. h4 {
[%emt 0:00:01]} Be7 {[%emt 0:00:03]} 34. Nd5 {[%emt 0:00:01]} Rd3 {[%emt 0:00:
02]} 35. Nxe7+ {[%emt 0:00:01]} Kf8 {[%emt 0:00:01]} 36. Nxg6+ {[%emt 0:00:01]}
hxg6 {[%emt 0:00:01]} 37. Rxd3 {[%emt 0:00:02]} exd3 {[%emt 0:00:00]} 38. Kf1 {
[%emt 0:00:01]} 1-0

[Event "FIDE Women World Blitz 2021"]
[Site "Warsaw"]
[Date "2021.12.30"]
[Round "10.38"]
[White "Smirnova, Ekaterina"]
[Black "Paramzina, Anastasya"]
[Result "0-1"]
[ECO "D80"]
[WhiteElo "2196"]
[BlackElo "2260"]
[Annotator "NA"]
[PlyCount "54"]
[EventDate "2021.12.29"]
[EventType "swiss"]
[EventCountry "POL"]
[Tiebreak "Cut1 Buchholz"]
[SourceTitle "playchess.com"]
[Source "ChessBase"]
[SourceQuality "1"]
[TimeControl "180+2"]

1. d4 {[%emt 0:00:01]} Nf6 {[%emt 0:00:01]} 2. c4 {[%emt 0:00:01]} g6 {[%emt 0:
00:01]} 3. Nc3 {[%emt 0:00:02]} d5 {[%emt 0:00:00]} 4. Bd2 {[%emt 0:00:01]}
dxc4 {[%emt 0:00:39]} 5. e3 {[%emt 0:00:05]} c5 {[%emt 0:00:39]} 6. dxc5 {
[%emt 0:00:30]} Nbd7 {[%emt 0:00:32]} 7. Bxc4 {[%emt 0:00:29]} Nxc5 {[%emt 0:
00:04]} 8. Qe2 {[%emt 0:00:15]} Bg7 {[%emt 0:00:24]} 9. Nf3 {[%emt 0:00:07]}
O-O {[%emt 0:00:03]} 10. O-O {[%emt 0:00:02]} Bf5 {[%emt 0:00:02]} 11. Nd4 {
[%emt 0:00:12]} Bg4 {[%emt 0:00:04]} 12. f3 {[%emt 0:00:10]} Bd7 {[%emt 0:00:
11]} 13. Rfd1 {[%emt 0:00:24]} e5 {[%emt 0:00:01]} 14. Nb3 {[%emt 0:00:12]}
Nxb3 {[%emt 0:00:05]} 15. Bxb3 {[%emt 0:00:02]} Qe7 {[%emt 0:00:02]} 16. e4 {
[%emt 0:00:09]} Rfd8 {[%emt 0:00:04]} 17. Be3 {[%emt 0:00:01]} b6 {[%emt 0:00:
12]} 18. Nd5 {[%emt 0:00:09]} Nxd5 {[%emt 0:00:01]} 19. Bxd5 {[%emt 0:00:01]}
Rac8 {[%emt 0:00:02]} 20. Rac1 {[%emt 0:00:02]} Be6 {[%emt 0:00:09]} 21. Bxe6 {
[%emt 0:00:11]} Qxe6 {[%emt 0:00:01]} 22. b3 {[%emt 0:00:07]} Bf8 {[%emt 0:00:
02]} 23. Rxd8 {[%emt 0:00:08]} Rxd8 {[%emt 0:00:02]} 24. Qc4 {[%emt 0:00:03]}
Qd7 {[%emt 0:00:03]} 25. a4 {[%emt 0:00:07]} Ba3 {[%emt 0:00:02]} 26. Re1 {
[%emt 0:00:08]} Qd3 {[%emt 0:00:02]} 27. Qc7 {[%emt 0:00:11]} Bb4 {[%emt 0:00:
02]} 0-1

[Event "FIDE Women World Blitz 2021"]
[Site "Warsaw"]
[Date "2021.12.30"]
[Round "10.39"]
[White "Beydullayeva, Govhar"]
[Black "Zawadzka, Jolanta"]
[Result "0-1"]
[ECO "D37"]
[WhiteElo "2278"]
[BlackElo "2429"]
[Annotator "NA"]
[PlyCount "66"]
[EventDate "2021.12.29"]
[EventType "swiss"]
[EventCountry "POL"]
[Tiebreak "Cut1 Buchholz"]
[SourceTitle "playchess.com"]
[Source "ChessBase"]
[SourceQuality "1"]
[TimeControl "180+2"]

1. d4 {[%emt 0:00:01]} d5 {[%emt 0:00:01]} 2. c4 {[%emt 0:00:00]} e6 {[%emt 0:
00:01]} 3. Nf3 {[%emt 0:00:03]} Nf6 {[%emt 0:00:01]} 4. Nc3 {[%emt 0:00:01]} a6
{[%emt 0:00:01]} 5. cxd5 {[%emt 0:00:11]} exd5 {[%emt 0:00:01]} 6. Bg5 {
[%emt 0:00:01]} Be6 {[%emt 0:00:01]} 7. Bxf6 {[%emt 0:00:12]} Qxf6 {[%emt 0:00:
03]} 8. Qb3 {[%emt 0:00:01]} Ra7 {[%emt 0:00:14]} 9. g3 {[%emt 0:00:04]} Bd6 {
[%emt 0:00:08]} 10. Bg2 {[%emt 0:00:01]} O-O {[%emt 0:00:17]} 11. O-O {[%emt 0:
00:23]} Qd8 {[%emt 0:00:05]} 12. Rac1 {[%emt 0:00:41]} c6 {[%emt 0:00:03]} 13.
Rfd1 {[%emt 0:00:12]} Nd7 {[%emt 0:00:09]} 14. Qc2 {[%emt 0:00:06]} Re8 {
[%emt 0:00:07]} 15. a3 {[%emt 0:00:03]} Ra8 {[%emt 0:00:02]} 16. Na4 {[%emt 0:
00:08]} g6 {[%emt 0:00:23]} 17. Nc5 {[%emt 0:00:25]} Bf5 {[%emt 0:00:15]} 18.
Qd2 {[%emt 0:00:02]} Nxc5 {[%emt 0:00:15]} 19. dxc5 {[%emt 0:00:01]} Bf8 {
[%emt 0:00:06]} 20. Nd4 {[%emt 0:00:13]} Qd7 {[%emt 0:00:12]} 21. Qf4 {[%emt 0:
00:13]} Bg4 {[%emt 0:00:19]} 22. f3 {[%emt 0:00:05]} Be6 {[%emt 0:00:02]} 23.
e4 {[%emt 0:00:16]} Bg7 {[%emt 0:00:10]} 24. Nxe6 {[%emt 0:00:16]} Qxe6 {
[%emt 0:00:06]} 25. exd5 {[%emt 0:00:01]} cxd5 {[%emt 0:00:01]} 26. Qd2 {
[%emt 0:00:04]} Rad8 {[%emt 0:00:15]} 27. f4 {[%emt 0:00:00]} d4 {[%emt 0:00:
18]} 28. Bxb7 {[%emt 0:00:08]} d3 {[%emt 0:00:01]} 29. Bg2 {[%emt 0:00:05]}
Bd4+ {[%emt 0:00:04]} 30. Kh1 Be3 {[%emt 0:00:00]} 31. Qc3 {[%emt 0:00:02]}
Bxc1 {[%emt 0:00:05]} 32. Qxc1 d2 {[%emt 0:00:05]} 33. Qc4 {[%emt 0:00:04]}
Qxc4 {[%emt 0:00:01]} 0-1

[Event "FIDE Women World Blitz 2021"]
[Site "Warsaw"]
[Date "2021.12.30"]
[Round "11.1"]
[White "Assaubayeva, Bibisara"]
[Black "Koneru, Humpy"]
[Result "1-0"]
[ECO "D35"]
[WhiteElo "2400"]
[BlackElo "2586"]
[Annotator "ChessBase"]
[PlyCount "61"]
[EventDate "2021.12.29"]
[EventType "swiss"]
[EventCountry "POL"]
[Tiebreak "Cut1 Buchholz"]
[SourceTitle "playchess.com"]
[Source "ChessBase"]
[SourceQuality "1"]
[TimeControl "180+2"]

1. d4 {[%emt 0:00:01]} Nf6 {[%emt 0:00:02]} 2. c4 {[%emt 0:00:01]} e6 {[%emt 0:
00:02]} 3. Nc3 {[%emt 0:00:01]} d5 {[%emt 0:00:01]} 4. cxd5 {[%emt 0:00:02]}
exd5 {[%emt 0:00:02]} 5. Bg5 {[%emt 0:00:02]} c6 {[%emt 0:00:01]} 6. e3 {
[%emt 0:00:01]} Be7 {[%emt 0:00:02]} 7. Bd3 {[%emt 0:00:02]} Nbd7 {[%emt 0:00:
01]} 8. Nf3 {[%emt 0:00:01]} h6 {[%emt 0:00:14]} 9. Bf4 {[%emt 0:00:04]} O-O {
[%emt 0:00:31]} 10. h3 {[%emt 0:00:01]} b6 {[%emt 0:00:21]} 11. O-O {[%emt 0:
00:03]} Bb7 {[%emt 0:00:01]} 12. Rc1 {[%emt 0:00:09]} Re8 {[%emt 0:00:10]} 13.
Bb1 {[%emt 0:00:11]} Nf8 {[%emt 0:00:06]} 14. Ne5 {[%emt 0:00:12]} Bd6 {
[%emt 0:00:24]} 15. Qf3 {[%emt 0:00:17]} Qe7 {[%emt 0:00:07]} 16. Rfe1 {
[%emt 0:00:20]} N6d7 {[%emt 0:00:28]} 17. Nd3 {[%emt 0:00:23]} Bxf4 {[%emt 0:
00:08]} 18. Nxf4 {[%emt 0:00:13]} Nf6 {[%emt 0:00:05]} 19. e4 {[%emt 0:00:02]}
dxe4 {[%emt 0:00:29]} 20. Nxe4 {[%emt 0:00:01]} Nd5 {[%emt 0:00:09]} 21. Nh5 {
[%emt 0:00:20]} Ng6 {[%emt 0:00:04]} 22. Nef6+ {[%emt 0:00:07]} gxf6 {[%emt 0:
00:08]} 23. Rxe7 {[%emt 0:00:02]} Rxe7 {[%emt 0:00:02]} 24. Bxg6 {[%emt 0:00:
08]} fxg6 {[%emt 0:00:02]} 25. Nxf6+ {[%emt 0:00:01]} Kg7 {[%emt 0:00:07]} 26.
Nxd5 {[%emt 0:00:02]} cxd5 {[%emt 0:00:01]} 27. Qg3 {[%emt 0:00:04]} Rf8 {
[%emt 0:00:02]} 28. Qd6 {[%emt 0:00:11]} Rff7 {[%emt 0:00:01]} 29. Qb8 {
[%emt 0:00:09]} Re2 {[%emt 0:00:02]} 30. Rc7 {[%emt 0:00:04]} Ba6 {[%emt 0:00:
05]} 31. Rxf7+ {[%emt 0:00:02]} 1-0

[Event "FIDE Women World Blitz 2021"]
[Site "Warsaw"]
[Date "2021.12.30"]
[Round "11.1"]
[White "Kubicka, Anna"]
[Black "Nur-Mukhametova, Alisa"]
[Result "0-1"]
[ECO "B40"]
[WhiteElo "2273"]
[BlackElo "2225"]
[Annotator "ChessBase"]
[PlyCount "199"]
[EventDate "2021.12.29"]
[EventType "swiss"]
[EventCountry "POL"]
[Tiebreak "Cut1 Buchholz"]
[SourceTitle "playchess.com"]
[Source "ChessBase"]
[SourceQuality "1"]
[TimeControl "180+2"]

1. e4 {[%emt 0:00:01]} c5 {[%emt 0:00:01]} 2. Nf3 {[%emt 0:00:01]} e6 {[%emt 0:
00:01]} 3. c4 {[%emt 0:00:01]} Nc6 {[%emt 0:00:03]} 4. Nc3 {[%emt 0:00:02]} Nd4
{[%emt 0:00:02]} 5. d3 {[%emt 0:00:05]} Ne7 {[%emt 0:00:09]} 6. Be2 {[%emt 0:
00:04]} Nec6 {[%emt 0:00:01]} 7. O-O {[%emt 0:00:03]} Nxf3+ {[%emt 0:00:13]} 8.
Bxf3 {[%emt 0:00:03]} Be7 {[%emt 0:00:01]} 9. g3 {[%emt 0:00:04]} O-O {[%emt 0:
00:09]} 10. Bg2 {[%emt 0:00:01]} a6 {[%emt 0:00:36]} 11. Be3 {[%emt 0:00:05]}
Rb8 {[%emt 0:00:07]} 12. a4 {[%emt 0:00:02]} d6 {[%emt 0:00:09]} 13. f4 {
[%emt 0:00:02]} Bf6 {[%emt 0:00:05]} 14. Qd2 {[%emt 0:00:07]} Bd4 {[%emt 0:00:
02]} 15. Rae1 {[%emt 0:00:12]} Bd7 {[%emt 0:00:06]} 16. b3 {[%emt 0:00:05]} Qa5
{[%emt 0:00:39]} 17. Bxd4 {[%emt 0:00:02]} cxd4 {[%emt 0:00:21]} 18. Nb1 {
[%emt 0:00:01]} Qc5 {[%emt 0:00:04]} 19. f5 {[%emt 0:00:10]} f6 {[%emt 0:00:26]
} 20. fxe6 {[%emt 0:00:02]} Bxe6 {[%emt 0:00:02]} 21. Qe2 {[%emt 0:00:44]} Ne5
{[%emt 0:00:07]} 22. Nd2 {[%emt 0:00:10]} b5 {[%emt 0:00:10]} 23. axb5 {
[%emt 0:00:02]} axb5 {[%emt 0:00:00]} 24. Nf3 {[%emt 0:00:11]} Nxf3+ {[%emt 0:
00:10]} 25. Bxf3 {[%emt 0:00:07]} bxc4 {[%emt 0:00:01]} 26. bxc4 {[%emt 0:00:
03]} Rb3 {[%emt 0:00:02]} 27. Rd1 {[%emt 0:00:09]} Rfb8 {[%emt 0:00:02]} 28.
Bg4 {[%emt 0:00:03]} Bf7 {[%emt 0:00:01]} 29. Rf5 {[%emt 0:00:26]} Qb4 {
[%emt 0:00:03]} 30. Rdf1 {[%emt 0:00:18]} Rb2 {[%emt 0:00:01]} 31. Qf3 {
[%emt 0:00:03]} Qd2 {[%emt 0:00:01]} 32. Rf2 {[%emt 0:00:07]} Qxf2+ {[%emt 0:
00:06]} 33. Qxf2 {[%emt 0:00:01]} Rxf2 {[%emt 0:00:01]} 34. Rxf2 {[%emt 0:00:
03]} Rb3 {[%emt 0:00:01]} 35. Rd2 {[%emt 0:00:03]} h5 {[%emt 0:00:04]} 36. Bd7
{[%emt 0:00:06]} Kf8 {[%emt 0:00:02]} 37. Kf2 {[%emt 0:00:01]} Ke7 {[%emt 0:00:
00]} 38. Bc6 {[%emt 0:00:03]} Rc3 {[%emt 0:00:05]} 39. h4 {[%emt 0:00:03]} Be6
{[%emt 0:00:01]} 40. Ba4 {[%emt 0:00:07]} Bg4 {[%emt 0:00:02]} 41. Bd1 {
[%emt 0:00:01]} Bxd1 {[%emt 0:00:03]} 42. Rxd1 {[%emt 0:00:01]} Ke6 {[%emt 0:
00:01]} 43. Ke2 {[%emt 0:00:02]} f5 {[%emt 0:00:02]} 44. Kf3 {[%emt 0:00:04]}
Ke5 {[%emt 0:00:01]} 45. exf5 {[%emt 0:00:02]} Kxf5 {[%emt 0:00:01]} 46. Rd2 {
[%emt 0:00:02]} g6 {[%emt 0:00:02]} 47. Rf2 {[%emt 0:00:07]} Ke5 {[%emt 0:00:
04]} 48. Re2+ {[%emt 0:00:02]} Kf5 {[%emt 0:00:01]} 49. Rd2 {[%emt 0:00:01]}
Rc1 {[%emt 0:00:02]} 50. Rf2 {[%emt 0:00:03]} Ke5 {[%emt 0:00:03]} 51. Ke2 {
[%emt 0:00:03]} Rc2+ {[%emt 0:00:02]} 52. Ke1 {[%emt 0:00:01]} Rc1+ {[%emt 0:
00:03]} 53. Kd2 {[%emt 0:00:01]} Rg1 {[%emt 0:00:02]} 54. Rf3 {[%emt 0:00:09]}
Rg2+ {[%emt 0:00:00]} 55. Kd1 {[%emt 0:00:02]} Rg1+ {[%emt 0:00:03]} 56. Ke2 {
[%emt 0:00:01]} Rg2+ {[%emt 0:00:01]} 57. Kf1 {[%emt 0:00:01]} Rd2 {[%emt 0:00:
02]} 58. Ke1 {[%emt 0:00:01]} Ra2 {[%emt 0:00:01]} 59. Kf1 {[%emt 0:00:04]} Ra6
{[%emt 0:00:05]} 60. Rf8 {[%emt 0:00:03]} Ra3 {[%emt 0:00:02]} 61. Ke2 {
[%emt 0:00:01]} Ra2+ {[%emt 0:00:00]} 62. Ke1 {[%emt 0:00:06]} Rg2 {[%emt 0:00:
03]} 63. Re8+ {[%emt 0:00:02]} Kf6 {[%emt 0:00:01]} 64. Re4 {[%emt 0:00:01]}
Rxg3 {[%emt 0:00:02]} 65. Rxd4 {[%emt 0:00:01]} Ke6 {[%emt 0:00:03]} 66. Re4+ {
[%emt 0:00:02]} Kf5 {[%emt 0:00:02]} 67. Ke2 {[%emt 0:00:01]} Rg4 {[%emt 0:00:
02]} 68. Re8 {[%emt 0:00:04]} Rxh4 {[%emt 0:00:02]} 69. Ke3 {[%emt 0:00:00]}
Rh3+ {[%emt 0:00:03]} 70. Kd4 {[%emt 0:00:01]} Rg3 {[%emt 0:00:02]} 71. Rf8+ {
[%emt 0:00:02]} Ke6 {[%emt 0:00:01]} 72. Re8+ {[%emt 0:00:01]} Kf7 {[%emt 0:00:
02]} 73. Rd8 {[%emt 0:00:02]} Ke7 {[%emt 0:00:01]} 74. Rg8 {[%emt 0:00:01]} h4
{[%emt 0:00:02]} 75. Ke4 {[%emt 0:00:02]} Ke6 {[%emt 0:00:03]} 76. d4 {[%emt 0:
00:01]} Rg4+ {[%emt 0:00:02]} 77. Ke3 {[%emt 0:00:01]} h3 {[%emt 0:00:03]} 78.
Rh8 {[%emt 0:00:01]} Rg3+ {[%emt 0:00:01]} 79. Kf4 {[%emt 0:00:01]} Rc3 {
[%emt 0:00:01]} 80. d5+ {[%emt 0:00:09]} Kf6 {[%emt 0:00:01]} 81. Rh7 {[%emt 0:
00:03]} Rxc4+ {[%emt 0:00:02]} 82. Ke3 {[%emt 0:00:02]} Rc3+ {[%emt 0:00:01]}
83. Kd4 {[%emt 0:00:01]} Rg3 {[%emt 0:00:02]} 84. Rd7 {[%emt 0:00:02]} Rg4+ {
[%emt 0:00:01]} 85. Ke3 {[%emt 0:00:03]} Ke5 {[%emt 0:00:01]} 86. Kf3 {[%emt 0:
00:01]} Rg5 {[%emt 0:00:04]} 87. Rh7 {[%emt 0:00:02]} Kxd5 {[%emt 0:00:04]} 88.
Rxh3 {[%emt 0:00:01]} Re5 {[%emt 0:00:02]} 89. Rh6 {[%emt 0:00:05]} g5 {
[%emt 0:00:00]} 90. Rg6 {[%emt 0:00:01]} Kc5 {[%emt 0:00:03]} 91. Rg8 {[%emt 0:
00:04]} d5 {[%emt 0:00:01]} 92. Rc8+ {[%emt 0:00:03]} Kd4 {[%emt 0:00:01]} 93.
Rd8 {[%emt 0:00:01]} Kc4 {[%emt 0:00:03]} 94. Rc8+ {[%emt 0:00:01]} Kd3 {
[%emt 0:00:01]} 95. Rd8 {[%emt 0:00:01]} d4 {[%emt 0:00:01]} 96. Kf2 {[%emt 0:
00:02]} Rf5+ {[%emt 0:00:01]} 97. Ke1 {[%emt 0:00:00]} g4 {[%emt 0:00:03]} 98.
Rg8 {[%emt 0:00:02]} Rf4 {[%emt 0:00:01]} 99. Rg7 {[%emt 0:00:02]} Ke3 {
[%emt 0:00:01]} 100. Re7+ {[%emt 0:00:02]} 0-1

[Event "FIDE Women World Blitz 2021"]
[Site "Warsaw"]
[Date "2021.12.30"]
[Round "11.2"]
[White "Vaishali R"]
[Black "Goryachkina, Aleksandra"]
[Result "1-0"]
[ECO "D02"]
[WhiteElo "2405"]
[BlackElo "2604"]
[Annotator "ChessBase"]
[PlyCount "79"]
[EventDate "2021.12.29"]
[EventType "swiss"]
[EventCountry "POL"]
[Tiebreak "Cut1 Buchholz"]
[SourceTitle "playchess.com"]
[Source "ChessBase"]
[SourceQuality "1"]
[TimeControl "180+2"]

1. d4 {[%emt 0:00:02]} d5 {[%emt 0:00:02]} 2. Bf4 {[%emt 0:00:02]} c5 {[%emt 0:
00:03]} 3. e3 {[%emt 0:00:01]} Nc6 {[%emt 0:00:02]} 4. Nf3 {[%emt 0:00:02]} Nf6
{[%emt 0:00:06]} 5. Nbd2 {[%emt 0:00:02]} cxd4 {[%emt 0:00:02]} 6. exd4 {
[%emt 0:00:01]} Bg4 {[%emt 0:00:04]} 7. h3 {[%emt 0:00:08]} Bh5 {[%emt 0:00:05]
} 8. c3 {[%emt 0:00:13]} e6 {[%emt 0:00:16]} 9. Qb3 {[%emt 0:00:06]} Bd6 {
[%emt 0:00:19]} 10. Bxd6 {[%emt 0:00:23]} Qxd6 {[%emt 0:00:02]} 11. Bd3 {
[%emt 0:00:01]} O-O {[%emt 0:00:07]} 12. O-O {[%emt 0:00:03]} Rab8 {[%emt 0:00:
11]} 13. a4 {[%emt 0:00:08]} Ne7 {[%emt 0:00:13]} 14. Rfe1 {[%emt 0:00:05]} Bg6
{[%emt 0:00:03]} 15. Bxg6 {[%emt 0:00:21]} Nxg6 {[%emt 0:00:01]} 16. Ne5 {
[%emt 0:00:02]} Nd7 {[%emt 0:00:09]} 17. Ndf3 {[%emt 0:00:06]} Ndxe5 {[%emt 0:
00:15]} 18. dxe5 {[%emt 0:00:07]} Qc7 {[%emt 0:00:04]} 19. Rad1 {[%emt 0:00:19]
} a6 {[%emt 0:00:05]} 20. Qb4 {[%emt 0:00:07]} Rfc8 {[%emt 0:00:08]} 21. h4 {
[%emt 0:00:08]} h6 {[%emt 0:00:09]} 22. h5 {[%emt 0:00:04]} Ne7 {[%emt 0:00:01]
} 23. Qf4 {[%emt 0:00:24]} b5 {[%emt 0:00:06]} 24. axb5 {[%emt 0:00:05]} Rxb5 {
[%emt 0:00:01]} 25. Rd2 {[%emt 0:00:03]} Rcb8 {[%emt 0:00:01]} 26. Ree2 {
[%emt 0:00:04]} a5 {[%emt 0:00:24]} 27. g4 {[%emt 0:00:06]} Rc5 {[%emt 0:00:17]
} 28. g5 {[%emt 0:00:11]} Rc4 {[%emt 0:00:09]} 29. Nd4 {[%emt 0:00:10]} Nf5 {
[%emt 0:00:06]} 30. gxh6 {[%emt 0:00:07]} Nxh6 {[%emt 0:00:03]} 31. f3 {
[%emt 0:00:08]} f6 {[%emt 0:00:15]} 32. Nxe6 {[%emt 0:00:07]} Qf7 {[%emt 0:00:
11]} 33. Nd4 {[%emt 0:00:03]} Qxh5 {[%emt 0:00:03]} 34. exf6 {[%emt 0:00:03]}
Rf8 {[%emt 0:00:01]} 35. Rg2 {[%emt 0:00:05]} Rf7 {[%emt 0:00:03]} 36. Rde2 {
[%emt 0:00:01]} Kh7 {[%emt 0:00:02]} 37. Re7 {[%emt 0:00:03]} Rxe7 {[%emt 0:00:
02]} 38. fxe7 {[%emt 0:00:01]} Qe8 {[%emt 0:00:03]} 39. Qg5 {[%emt 0:00:02]} g6
{[%emt 0:00:03]} 40. Rh2 {[%emt 0:00:02]} 1-0

[Event "FIDE Women World Blitz 2021"]
[Site "Warsaw"]
[Date "2021.12.30"]
[Round "11.2"]
[White "Kazarian, Anna-Maja"]
[Black "Dylag, Emilia"]
[Result "0-1"]
[ECO "B90"]
[WhiteElo "2138"]
[BlackElo "1863"]
[Annotator "NA"]
[PlyCount "116"]
[EventDate "2021.12.29"]
[EventType "swiss"]
[EventCountry "POL"]
[Tiebreak "Cut1 Buchholz"]
[SourceTitle "playchess.com"]
[Source "ChessBase"]
[SourceQuality "1"]
[TimeControl "180+2"]

1. e4 {[%emt 0:00:01]} c5 {[%emt 0:00:01]} 2. Nf3 {[%emt 0:00:01]} d6 {[%emt 0:
00:01]} 3. d4 {[%emt 0:00:01]} cxd4 {[%emt 0:00:01]} 4. Nxd4 {[%emt 0:00:02]}
Nf6 {[%emt 0:00:01]} 5. Nc3 {[%emt 0:00:01]} a6 {[%emt 0:00:01]} 6. Be3 {
[%emt 0:00:02]} e5 {[%emt 0:00:03]} 7. Nb3 {[%emt 0:00:04]} Be6 {[%emt 0:00:01]
} 8. Qd2 {[%emt 0:00:00]} Be7 {[%emt 0:00:04]} 9. O-O-O {[%emt 0:00:01]} Nbd7 {
[%emt 0:00:15]} 10. Kb1 {[%emt 0:00:04]} O-O {[%emt 0:00:09]} 11. f4 {[%emt 0:
00:15]} Rc8 {[%emt 0:00:22]} 12. f5 {[%emt 0:00:07]} Bc4 {[%emt 0:00:06]} 13.
g4 {[%emt 0:00:37]} Nxg4 {[%emt 0:00:25]} 14. Rg1 {[%emt 0:00:01]} Nxe3 {
[%emt 0:00:10]} 15. Qxe3 {[%emt 0:00:01]} Kh8 {[%emt 0:00:43]} 16. Nd2 {
[%emt 0:01:02]} Bxf1 {[%emt 0:00:04]} 17. Rdxf1 {[%emt 0:00:02]} Nf6 {[%emt 0:
00:34]} 18. Nf3 {[%emt 0:00:24]} d5 {[%emt 0:00:04]} 19. Nxe5 {[%emt 0:00:43]}
Bc5 {[%emt 0:00:07]} 20. Qg3 {[%emt 0:00:08]} Bxg1 {[%emt 0:00:02]} 21. Rxg1 {
[%emt 0:00:00]} g6 {[%emt 0:00:17]} 22. fxg6 {[%emt 0:00:02]} fxg6 {[%emt 0:00:
02]} 23. Rd1 {[%emt 0:00:04]} d4 {[%emt 0:00:06]} 24. Ne2 {[%emt 0:00:02]} Nxe4
{[%emt 0:00:01]} 25. Qd3 {[%emt 0:00:02]} Nf2 {[%emt 0:00:03]} 26. Qxd4 {
[%emt 0:00:01]} Qxd4 {[%emt 0:00:03]} 27. Rxd4 {[%emt 0:00:01]} Nh3 {[%emt 0:
00:04]} 28. b3 {[%emt 0:00:03]} Rce8 {[%emt 0:00:01]} 29. Nd7 {[%emt 0:00:05]}
Rd8 {[%emt 0:00:03]} 30. Ng3 {[%emt 0:00:02]} Rf7 {[%emt 0:00:01]} 31. Ne4 {
[%emt 0:00:01]} Rfxd7 {[%emt 0:00:01]} 32. Rc4 {[%emt 0:00:00]} Nf4 {[%emt 0:
00:02]} 33. Kb2 {[%emt 0:00:01]} Ne6 {[%emt 0:00:02]} 34. Nf6 {[%emt 0:00:01]}
Rc7 {[%emt 0:00:02]} 35. Rh4 {[%emt 0:00:01]} h5 {[%emt 0:00:01]} 36. Re4 {
[%emt 0:00:01]} Nc5 {[%emt 0:00:02]} 37. Re2 {[%emt 0:00:01]} Kg7 {[%emt 0:00:
02]} 38. Ne8+ {[%emt 0:00:01]} Rxe8 {[%emt 0:00:01]} 39. Rxe8 {[%emt 0:00:01]}
g5 {[%emt 0:00:02]} 40. b4 {[%emt 0:00:00]} Na4+ {[%emt 0:00:03]} 41. Kb3 {
[%emt 0:00:01]} Nc3 {[%emt 0:00:01]} 42. a4 {[%emt 0:00:09]} g4 {[%emt 0:00:03]
} 43. Re3 {[%emt 0:00:02]} Nd5 {[%emt 0:00:02]} 44. Re5 {[%emt 0:00:01]} Nf6 {
[%emt 0:00:01]} 45. c4 {[%emt 0:00:00]} Kg6 {[%emt 0:00:02]} 46. c5 {[%emt 0:
00:03]} h4 {[%emt 0:00:02]} 47. b5 {[%emt 0:00:01]} axb5 {[%emt 0:00:01]} 48.
axb5 {[%emt 0:00:01]} g3 {[%emt 0:00:02]} 49. hxg3 {[%emt 0:00:02]} hxg3 {
[%emt 0:00:00]} 50. Re3 {[%emt 0:00:07]} Nh5 {[%emt 0:00:01]} 51. Kc4 {[%emt 0:
00:06]} g2 {[%emt 0:00:02]} 52. Re1 {[%emt 0:00:01]} Kf5 {[%emt 0:00:01]} 53.
b6 {[%emt 0:00:02]} Rc6 {[%emt 0:00:02]} 54. Kd5 {[%emt 0:00:01]} Rg6 {[%emt 0:
00:02]} 55. Rg1 {[%emt 0:00:02]} Nf4+ {[%emt 0:00:01]} 56. Kc4 {[%emt 0:00:01]}
Ne2 {[%emt 0:00:01]} 57. c6 {[%emt 0:00:03]} Rxc6+ {[%emt 0:00:01]} 58. Kb5 {
[%emt 0:00:01]} Nxg1 {[%emt 0:00:02]} 0-1